bitfinex/quotes_BTCUSD_20250225
["timestamp","ask_amount","ask_price","bid_price","bid_amount"]
[1740527145931,0.168622,88956.0,88955.0,0.0808]
[1740527146063,0.01816341,88961.0,88947.0,0.0831]
[1740527146271,0.168641,88946.0,88941.0,0.0831]
[1740527146512,0.168641,88946.0,88940.0,0.0016942]
[1740527147629,0.247141,88946.0,88940.0,0.0016942]
[1740527149271,0.56468185,88946.0,88940.0,0.0016942]
[1740527150087,0.57564185,88946.0,88940.0,0.0016942]
[1740527150622,0.471641,88946.0,88940.0,0.0016942]
[1740527150822,0.481601,88946.0,88940.0,0.0016942]
[1740527151195,0.484601,88946.0,88940.0,0.0016942]
[1740527151921,0.487601,88946.0,88945.0,0.00182154]
[1740527152571,0.60145796,88946.0,88945.0,0.00182154]
[1740527153726,0.487601,88946.0,88945.0,0.00182154]
[1740527158133,0.477641,88946.0,88945.0,0.00182154]
[1740527158767,0.474641,88946.0,88945.0,0.00182154]
[1740527159169,0.477641,88946.0,88945.0,0.00182154]
[1740527159592,0.474641,88946.0,88945.0,0.00182154]
[1740527159802,0.468641,88946.0,88945.0,0.00182154]
[1740527160006,0.58849796,88946.0,88945.0,0.00182154]
[1740527160209,0.474641,88946.0,88945.0,0.00182154]
[1740527160406,0.471641,88946.0,88945.0,0.00182154]
[1740527160616,0.474641,88946.0,88945.0,0.00182154]
[1740527160840,0.477641,88946.0,88945.0,0.00182154]
[1740527161041,0.471641,88946.0,88945.0,0.00182154]
[1740527161239,0.474641,88946.0,88945.0,0.00182154]
[1740527161450,0.58849796,88946.0,88945.0,0.00182154]
[1740527161703,0.58549796,88946.0,88945.0,0.00182154]
[1740527162060,0.11385696,88946.0,88945.0,0.00182154]
[1740527162472,0.28549796,88946.0,88945.0,0.00182154]
[1740527162927,0.28849796,88946.0,88945.0,0.00182154]
[1740527163146,0.174641,88946.0,88945.0,0.00182154]
[1740527164181,0.003,88946.0,88945.0,0.00182154]
[1740527164387,0.172641,88946.0,88945.0,0.00182154]
[1740527164815,0.171641,88946.0,88945.0,0.00182154]
[1740527165261,0.168641,88946.0,88945.0,0.00182154]
[1740527165987,0.169641,88946.0,88945.0,0.00182154]
[1740527166399,0.168641,88946.0,88945.0,0.00182154]
[1740527166623,0.169641,88946.0,88945.0,0.00182154]
[1740527167065,0.168641,88946.0,88945.0,0.00182154]
[1740527167943,0.168641,88946.0,88945.0,0.00282154]
[1740527169384,0.168641,88946.0,88945.0,0.00182154]
[1740527169902,0.168641,88946.0,88945.0,0.00282154]
[1740527170126,0.168641,88946.0,88945.0,0.00182154]
[1740527170525,0.168641,88946.0,88945.0,0.00382154]
[1740527170733,0.224849,88949.0,88945.0,0.00382154]
[1740527170940,0.168641,88946.0,88945.0,0.00382154]
[1740527171300,0.168641,88946.0,88945.0,0.00582154]
[1740527171725,0.168641,88946.0,88945.0,0.00382154]
[1740527172148,0.168641,88946.0,88945.0,0.00482154]
[1740527172361,0.168641,88946.0,88945.0,0.00282154]
[1740527172565,0.168641,88946.0,88945.0,0.00182154]
[1740527172715,0.168641,88946.0,88945.0,0.00282154]
[1740527172925,0.169641,88946.0,88945.0,0.00182154]
[1740527173483,0.170641,88946.0,88945.0,0.00182154]
[1740527173662,0.001,88946.0,88945.0,0.00182154]
[1740527174069,0.004,88946.0,88945.0,0.00182154]
[1740527174899,0.003,88946.0,88945.0,0.00182154]
[1740527175134,0.004,88946.0,88945.0,0.00182154]
[1740527175277,0.172641,88946.0,88945.0,0.00182154]
[1740527175675,0.171641,88946.0,88945.0,0.00182154]
[1740527175878,0.171641,88946.0,88945.0,0.00382154]
[1740527176550,0.171641,88946.0,88945.0,0.00182154]
[1740527176763,0.168641,88946.0,88945.0,0.00282154]
[1740527176883,0.168641,88946.0,88945.0,0.00582154]
[1740527178183,0.16949,88946.0,88945.0,0.00182154]
[1740527179323,0.17149,88946.0,88945.0,0.00182154]
[1740527179550,0.17249,88946.0,88945.0,0.00182154]
[1740527179752,0.17149,88946.0,88945.0,0.00182154]
[1740527180133,0.17349,88946.0,88945.0,0.00182154]
[1740527187301,0.17149,88946.0,88945.0,0.00182154]
[1740527187636,0.17349,88946.0,88945.0,0.00182154]
[1740527187832,0.17149,88946.0,88945.0,0.00182154]
[1740527188055,0.17349,88946.0,88945.0,0.00182154]
[1740527188269,0.004849,88946.0,88929.0,0.0008487]
[1740527188483,0.168671,88930.0,88929.0,0.00097373]
[1740527189861,0.169671,88930.0,88929.0,0.00097373]
[1740527190072,0.17814688,88930.0,88929.0,0.00097373]
[1740527190268,0.2323493,88930.0,88929.0,0.00097373]
[1740527190935,0.2333493,88930.0,88929.0,0.00097373]
[1740527191103,0.17914688,88930.0,88929.0,0.00097373]
[1740527191436,0.19268773,88930.0,88929.0,0.00097373]
[1740527191869,0.17714688,88930.0,88929.0,0.00097373]
[1740527192110,0.18114688,88930.0,88929.0,0.00097373]
[1740527192327,0.18514688,88930.0,88929.0,0.00097373]
[1740527193432,0.18114688,88930.0,88929.0,0.00097373]
[1740527193760,0.18414688,88930.0,88929.0,0.00097373]
[1740527193985,0.18014688,88930.0,88929.0,0.00097373]
[1740527194309,0.18314688,88930.0,88929.0,0.00097373]
[1740527194861,0.17714688,88930.0,88929.0,0.00097373]
[1740527195084,0.18014688,88930.0,88929.0,0.00097373]
[1740527195280,0.18314688,88930.0,88929.0,0.00097373]
[1740527195503,0.18014688,88930.0,88929.0,0.00097373]
[1740527196407,0.18314688,88930.0,88929.0,0.00097373]
[1740527198099,0.18014688,88930.0,88929.0,0.00097373]
[1740527198521,0.17714688,88930.0,88929.0,0.00097373]
[1740527198727,0.18014688,88930.0,88929.0,0.00097373]
[1740527199248,0.18314688,88930.0,88929.0,0.00097373]
[1740527199571,0.18014688,88930.0,88929.0,0.00097373]
[1740527199783,0.18214688,88930.0,88929.0,0.00097373]
[1740527200285,0.17914688,88930.0,88929.0,0.00097373]
[1740527200744,0.18114688,88930.0,88929.0,0.00097373]
[1740527203188,0.29500384,88930.0,88929.0,0.00097373]
[1740527203591,0.19568773,88930.0,88929.0,0.00097373]
[1740527204392,0.19368773,88930.0,88929.0,0.00097373]
[1740527204556,0.19668773,88930.0,88929.0,0.00097373]
[1740527204804,0.20068773,88930.0,88929.0,0.00097373]
[1740527205003,0.168677,88927.0,88926.0,0.0016948]
[1740527205203,0.25691373,88930.0,88908.0,0.0016966]
[1740527205204,0.337364,88925.0,88908.0,0.0016966]
[1740527205445,0.168711,88909.0,88908.0,0.0021138]
[1740527206268,0.2530644,88909.0,88908.0,0.0021138]
[1740527206983,0.168755,88886.0,88885.0,0.0807]
[1740527207145,0.168759,88884.0,88883.0,0.0016978]
[1740527209155,0.00842417,88894.0,88883.0,0.0016978]
[1740527209156,0.224955,88907.0,88883.0,0.0016978]
[1740527209359,0.168757,88885.0,88883.0,0.0016978]
[1740527209695,0.224985,88895.0,88884.0,0.0792]
[1740527209855,0.168751,88889.0,88885.0,0.00808978]
[1740527210055,0.224996,88891.0,88885.0,0.00808978]
[1740527210262,0.00836083,88907.0,88886.0,0.0452]
[1740527210465,0.168743,88893.0,88887.0,0.0775]
[1740527210662,0.168742,88893.0,88888.0,0.02221119]
[1740527210901,0.224984,88895.0,88888.0,0.02221119]
[1740527211131,0.168749,88889.0,88888.0,0.02221119]
[1740527211312,0.224994,88892.0,88888.0,0.02221119]
[1740527211517,0.168749,88890.0,88889.0,0.02443231]
[1740527211724,0.002,88897.0,88889.0,0.02443231]
[1740527211901,0.224973,88900.0,88889.0,0.02443231]
[1740527212105,0.168734,88898.0,88889.0,0.02443231]
[1740527212308,0.168747,88891.0,88889.0,0.02443231]
[1740527212511,0.168745,88891.0,88890.0,0.02384544]
[1740527213755,0.168744,88892.0,88890.0,0.02584544]
[1740527214412,0.16874,88895.0,88890.0,0.02384544]
[1740527214832,0.168736,88897.0,88890.0,0.02384544]
[1740527215009,0.224932,88916.0,88891.0,0.02370192]
[1740527215414,0.168724,88903.0,88891.0,0.02370192]
[1740527215615,0.168725,88902.0,88891.0,0.02370192]
[1740527215816,0.224961,88904.0,88891.0,0.02370192]
[1740527216153,0.168723,88903.0,88892.0,0.02368756]
[1740527216538,0.224951,88908.0,88892.0,0.02368756]
[1740527216739,0.01779949,88909.0,88892.0,0.02368756]
[1740527216953,0.18651149,88909.0,88894.0,0.08962431]
[1740527217264,0.002,88904.0,88897.0,0.0825]
[1740527217480,0.002,88904.0,88897.0,0.08407467]
[1740527217660,0.01779949,88909.0,88898.0,0.02470865]
[1740527218235,0.01779949,88909.0,88899.0,0.0781]
[1740527218689,0.002,88904.0,88899.0,0.0781]
[1740527219610,0.01779949,88909.0,88899.0,0.0781]
[1740527219761,0.18651049,88909.0,88899.0,0.0781]
[1740527219969,0.18651049,88909.0,88900.0,0.0242133]
[1740527220181,0.01779949,88909.0,88901.0,0.0773]
[1740527221005,0.18651149,88909.0,88901.0,0.0773]
[1740527221210,0.01779949,88909.0,88901.0,0.0773]
[1740527221389,0.01779949,88909.0,88901.0,0.07887454]
[1740527221590,0.00041798,88909.0,88904.0,0.0773]
[1740527221788,0.00041798,88909.0,88908.0,0.292713]
[1740527223051,0.00041798,88909.0,88908.0,0.124]
[1740527224227,0.00141798,88909.0,88908.0,0.124]
[1740527224628,0.00241798,88909.0,88908.0,0.126]
[1740527224829,0.17112898,88909.0,88908.0,0.124]
[1740527225035,0.168719,88905.0,88904.0,0.3251]
[1740527225592,0.168734,88897.0,88896.0,0.1239]
[1740527225795,0.168734,88897.0,88896.0,0.14533737]
[1740527225995,0.00241798,88909.0,88896.0,0.14533737]
[1740527226219,0.00241798,88909.0,88896.0,0.09823737]
[1740527226433,0.168734,88897.0,88896.0,0.0768]
[1740527229230,0.169734,88897.0,88896.0,0.0788]
[1740527229568,0.169734,88897.0,88896.0,0.0768]
[1740527229984,0.169734,88897.0,88896.0,0.002]
[1740527230222,0.170734,88897.0,88896.0,0.002]
[1740527230638,0.001,88897.0,88896.0,0.00794494]
[1740527230904,0.169734,88897.0,88896.0,0.00794494]
[1740527231681,0.168734,88897.0,88896.0,0.00794494]
[1740527232008,0.001,88897.0,88896.0,0.00794494]
[1740527232205,0.169734,88897.0,88896.0,0.00794494]
[1740527232662,0.170734,88897.0,88896.0,0.00994494]
[1740527232877,0.170734,88897.0,88896.0,0.002]
[1740527233086,0.224982,88896.0,88886.0,0.045]
[1740527233400,0.168747,88890.0,88886.0,0.045]
[1740527234486,0.169747,88890.0,88889.0,0.0028494]
[1740527235756,0.169747,88890.0,88889.0,0.0008494]
[1740527236159,0.170747,88890.0,88889.0,0.0028494]
[1740527236401,0.170747,88890.0,88889.0,0.01093412]
[1740527242411,0.18789553,88890.0,88889.0,0.0028494]
[1740527243012,0.18689553,88890.0,88889.0,0.0008494]
[1740527243445,0.18789553,88890.0,88889.0,0.0008494]
[1740527244116,0.18689553,88890.0,88889.0,0.0008494]
[1740527244345,0.19089553,88890.0,88889.0,0.0008494]
[1740527244666,0.19548337,88890.0,88889.0,0.0008494]
[1740527245311,0.19948337,88890.0,88889.0,0.0008494]
[1740527245718,0.19548337,88890.0,88889.0,0.0008494]
[1740527246200,0.19648337,88890.0,88889.0,0.0008494]
[1740527246553,0.19548337,88890.0,88889.0,0.0008494]
[1740527246925,0.19948337,88890.0,88889.0,0.0008494]
[1740527247175,0.19848337,88890.0,88889.0,0.0008494]
[1740527247912,0.20148337,88890.0,88889.0,0.0008494]
[1740527248325,0.18589553,88890.0,88889.0,0.0008494]
[1740527248535,0.19389553,88890.0,88889.0,0.0008494]
[1740527248712,0.18989553,88890.0,88889.0,0.00898412]
[1740527248969,0.18589553,88890.0,88889.0,0.00898412]
[1740527249319,0.19389553,88890.0,88889.0,0.0008494]
[1740527249877,0.18989553,88890.0,88889.0,0.0008494]
[1740527250653,0.18589553,88890.0,88889.0,0.0008494]
[1740527252751,0.01714853,88890.0,88889.0,0.0008494]
[1740527253001,0.168746,88891.0,88889.0,0.0008494]
[1740527253257,0.168747,88890.0,88889.0,0.0008494]
[1740527253656,0.224985,88895.0,88889.0,0.0008494]
[1740527254110,0.168747,88890.0,88889.0,0.0008494]
[1740527254902,0.168747,88890.0,88889.0,0.0018494]
[1740527255285,0.168747,88890.0,88889.0,0.0008494]
[1740527255496,0.168747,88890.0,88889.0,0.0018494]
[1740527259089,0.16874,88894.0,88889.0,0.0018494]
[1740527259300,0.2266714,88899.0,88890.0,0.082]
[1740527259501,0.224979,88897.0,88891.0,0.00838494]
[1740527259702,0.0016964,88899.0,88891.0,0.00838494]
[1740527260310,0.168744,88892.0,88891.0,0.00838494]
[1740527261924,0.169744,88892.0,88891.0,0.01038494]
[1740527262323,0.170744,88892.0,88891.0,0.01038494]
[1740527262555,0.002,88892.0,88891.0,0.01038494]
[1740527263315,0.170744,88892.0,88891.0,0.01038494]
[1740527263983,0.169744,88892.0,88891.0,0.00838494]
[1740527264209,0.169744,88892.0,88891.0,0.01038494]
[1740527264389,0.170744,88892.0,88891.0,0.01138494]
[1740527264829,0.170744,88892.0,88891.0,0.01038494]
[1740527265135,0.171744,88892.0,88891.0,0.01138494]
[1740527265547,0.170744,88892.0,88891.0,0.00938494]
[1740527265753,0.169744,88892.0,88891.0,0.01038494]
[1740527266049,0.169744,88892.0,88891.0,0.01138494]
[1740527266050,0.170744,88892.0,88891.0,0.01138494]
[1740527267059,0.170744,88892.0,88891.0,0.00938494]
[1740527267269,0.168744,88892.0,88891.0,0.00838494]
[1740527267404,0.169744,88892.0,88891.0,0.01038494]
[1740527267610,0.170744,88892.0,88891.0,0.01138494]
[1740527267807,0.169744,88892.0,88891.0,0.00838494]
[1740527268027,0.170744,88892.0,88891.0,0.001]
[1740527268359,0.170744,88892.0,88891.0,0.002]
[1740527268727,0.170744,88892.0,88891.0,0.001]
[1740527268938,0.171744,88892.0,88891.0,0.003]
[1740527269349,0.169744,88892.0,88891.0,0.002]
[1740527271405,0.170744,88892.0,88891.0,0.003]
[1740527273661,0.170744,88892.0,88891.0,0.0845]
[1740527273849,0.170744,88892.0,88891.0,0.01238314]
[1740527274069,0.170744,88892.0,88891.0,0.0038482]
[1740527280977,0.002,88892.0,88891.0,0.0038482]
[1740527281184,0.002,88892.0,88891.0,0.13412294]
[1740527281959,0.002,88892.0,88891.0,0.30286794]
[1740527282180,0.002,88892.0,88891.0,0.31716028]
[1740527282783,0.001,88892.0,88891.0,0.31516028]
[1740527282983,0.002,88892.0,88891.0,0.31716028]
[1740527283353,0.002,88892.0,88891.0,0.14841528]
[1740527283709,0.0016964,88899.0,88891.0,0.14698991]
[1740527283901,0.0016964,88899.0,88891.0,0.14898991]
[1740527283902,0.001,88892.0,88891.0,0.14898991]
[1740527284142,0.002,88892.0,88891.0,0.15498991]
[1740527284575,0.001,88892.0,88891.0,0.32173491]
[1740527284746,0.001,88892.0,88891.0,0.32016028]
[1740527284951,0.0016964,88899.0,88892.0,0.0771]
[1740527286182,0.0016964,88899.0,88892.0,0.07867463]
[1740527286494,0.25181057,88933.0,88892.0,0.07867463]
[1740527286700,0.224877,88938.0,88903.0,0.0806]
[1740527286701,0.168696,88917.0,88903.0,0.0806]
[1740527286907,0.168687,88922.0,88909.0,0.0806]
[1740527287028,0.168685,88923.0,88910.0,0.00157442]
[1740527287224,0.05662344,89006.0,88909.0,0.0806]
[1740527287424,0.16869,88921.0,88910.0,0.0015744]
[1740527287647,0.01602715,88921.0,88910.0,0.0015744]
[1740527287853,0.168687,88922.0,88910.0,0.0015744]
[1740527288065,0.224912,88924.0,88910.0,0.0015744]
[1740527288267,0.168685,88923.0,88910.0,0.0015744]
[1740527288544,0.168681,88925.0,88910.0,0.0015744]
[1740527288749,0.005,88933.0,88910.0,0.0015744]
[1740527288996,0.168683,88924.0,88910.0,0.0015744]
[1740527289206,0.224881,88936.0,88910.0,0.0015744]
[1740527289207,0.224881,88936.0,88911.0,0.4044]
[1740527289405,0.01590164,88925.0,88912.0,0.16499744]
[1740527289633,0.168682,88925.0,88912.0,0.16499744]
[1740527289759,0.0048491,88940.0,88912.0,0.16499744]
[1740527289965,0.168666,88933.0,88913.0,0.00157421]
[1740527290163,0.0048491,88940.0,88913.0,0.00157421]
[1740527290164,0.0048491,88940.0,88916.0,0.224931]
[1740527290385,0.224877,88938.0,88919.0,0.0756]
[1740527290596,0.16866,88936.0,88920.0,0.00157416]
[1740527290802,0.224877,88938.0,88921.0,0.11619744]
[1740527291008,0.01696363,88940.0,88923.0,0.1231]
[1740527291207,0.002,88933.0,88926.0,0.0756]
[1740527291381,0.002,88933.0,88932.0,0.291768]
[1740527291583,0.0008491,88940.0,88932.0,0.291768]
[1740527291584,0.0008491,88940.0,88932.0,0.3726]
[1740527291830,0.0008491,88940.0,88934.0,0.0756]
[1740527292032,0.0008491,88940.0,88939.0,0.0763]
[1740527292551,0.0008491,88940.0,88939.0,0.07787379]
[1740527293102,0.168624,88955.0,88939.0,0.07787379]
[1740527293300,0.168624,88955.0,88940.0,0.34536747]
[1740527293504,0.168623,88956.0,88940.0,0.34536747]
[1740527294393,0.16862,88957.0,88940.0,0.34536747]
[1740527294559,0.01603508,88958.0,88941.0,0.00157376]
[1740527294763,0.01603508,88958.0,88942.0,0.03726]
[1740527294960,0.01603508,88958.0,88943.0,0.24702074]
[1740527295170,0.01603508,88958.0,88943.0,0.0768]
[1740527295369,0.168624,88956.0,88943.0,0.0768]
[1740527296072,0.0001254,88958.0,88945.0,0.0755]
[1740527296283,0.0001254,88958.0,88947.0,0.0755]
[1740527296475,0.0001254,88958.0,88957.0,0.16862]
[1740527296682,0.0011254,88958.0,88957.0,0.29132]
[1740527297044,0.0001254,88958.0,88957.0,0.29132]
[1740527297245,0.0001254,88958.0,88957.0,0.32858]
[1740527297651,0.0001254,88958.0,88957.0,0.33458]
[1740527297849,0.0001254,88958.0,88957.0,0.18050085]
[1740527298328,0.0001254,88958.0,88957.0,0.16596]
[1740527298527,0.0001254,88958.0,88957.0,0.1287]
[1740527299361,0.0001254,88958.0,88957.0,0.1357]
[1740527300307,0.0001254,88958.0,88957.0,0.1297]
[1740527300723,0.0001254,88958.0,88957.0,0.1367]
[1740527309407,0.0001254,88958.0,88957.0,0.3068935]
[1740527309647,0.0001254,88958.0,88957.0,0.30532]
[1740527310407,0.0001254,88958.0,88957.0,0.1367]
[1740527310627,0.0001254,88958.0,88957.0,0.30532]
[1740527311815,0.0001254,88958.0,88957.0,0.63042]
[1740527312790,0.0001254,88958.0,88957.0,0.85870838]
[1740527313923,0.0001254,88958.0,88957.0,0.85170838]
[1740527314290,0.0001254,88958.0,88957.0,0.85870838]
[1740527314491,0.0001254,88958.0,88957.0,0.85170838]
[1740527315540,0.0001254,88958.0,88957.0,0.85870838]
[1740527315773,0.0001254,88958.0,88957.0,0.85170838]
[1740527316094,0.0001254,88958.0,88957.0,0.85870838]
[1740527316493,0.0001254,88958.0,88957.0,0.85170838]
[1740527316699,0.0001254,88958.0,88957.0,0.84470838]
[1740527316948,0.0001254,88958.0,88957.0,0.85870838]
[1740527317153,0.0001254,88958.0,88957.0,1.15870838]
[1740527317330,0.0001254,88958.0,88957.0,1.15170838]
[1740527317731,0.0001254,88958.0,88957.0,1.69530838]
[1740527318641,0.01582212,88990.0,88959.0,0.0785]
[1740527318847,0.00012537,88990.0,88973.0,0.0785]
[1740527319295,0.168561,88989.0,88973.0,0.0785]
[1740527319718,0.16868337,88990.0,88973.0,0.24709]
[1740527320517,0.01621489,88990.0,88973.0,0.0785]
[1740527320725,0.01621489,88990.0,88973.0,0.0835]
[1740527320860,0.168562,88988.0,88973.0,0.0835]
[1740527321066,0.168563,88988.0,88973.0,0.0885]
[1740527321268,0.00012537,88990.0,88973.0,0.0785]
[1740527321616,0.16868437,88990.0,88974.0,0.03290018]
[1740527322210,0.00012537,88990.0,88974.0,0.03290018]
[1740527322367,0.168564,88987.0,88973.0,0.0805]
[1740527322573,0.168564,88987.0,88973.0,0.0855]
[1740527322970,0.168564,88987.0,88973.0,0.0785]
[1740527323170,0.224747,88989.0,88974.0,0.004]
[1740527323393,0.00012537,88990.0,88975.0,0.03280018]
[1740527323597,0.16856,88989.0,88975.0,0.03280018]
[1740527323777,0.16856,88989.0,88976.0,0.3251]
[1740527324432,0.16953097,88990.0,88976.0,0.3251]
[1740527324634,0.01594459,88990.0,88976.0,0.3251]
[1740527324870,0.0560658,89063.0,88977.0,0.02472729]
[1740527325048,0.00211422,88998.0,88977.0,0.34982729]
[1740527325252,0.168559,88990.0,88977.0,0.34982729]
[1740527325730,0.00196647,88989.0,88977.0,0.34982729]
[1740527325933,0.168578,88980.0,88977.0,0.34982729]
[1740527326270,0.168579,88979.0,88978.0,0.03280018]
[1740527326423,0.168581,88978.0,88977.0,0.004]
[1740527326627,0.01524516,88990.0,88977.0,0.004]
[1740527326628,0.224749,88988.0,88977.0,0.004]
[1740527326829,0.168578,88980.0,88977.0,0.004]
[1740527327049,0.01487446,88990.0,88977.0,0.004]
[1740527327369,0.16857,88984.0,88977.0,0.004]
[1740527327545,0.168568,88985.0,88977.0,0.004]
[1740527327746,0.168568,88985.0,88969.0,0.3251]
[1740527327931,0.168568,88985.0,88977.0,0.009]
[1740527328349,0.168568,88985.0,88977.0,0.004]
[1740527328541,0.168566,88986.0,88969.0,0.3251]
[1740527328742,0.168568,88985.0,88977.0,0.003]
[1740527329243,0.168568,88985.0,88970.0,0.04062]
[1740527329452,0.16857,88984.0,88970.0,0.04062]
[1740527329653,0.01495518,88990.0,88977.0,0.005]
[1740527329855,0.168577,88980.0,88977.0,0.005]
[1740527330190,0.224746,88989.0,88977.0,0.005]
[1740527330420,0.224746,88989.0,88977.0,0.003]
[1740527330647,0.168578,88980.0,88977.0,0.006]
[1740527330814,0.168579,88979.0,88977.0,0.003]
[1740527331026,0.168579,88979.0,88970.0,0.04062]
[1740527331229,0.168579,88979.0,88977.0,0.004]
[1740527331388,0.168579,88979.0,88971.0,0.01690747]
[1740527331727,0.0496,88988.0,88971.0,0.01690747]
[1740527331947,0.168576,88981.0,88971.0,0.01690747]
[1740527332233,0.168575,88982.0,88977.0,0.004]
[1740527332834,0.168575,88982.0,88971.0,0.01690747]
[1740527333035,0.168575,88982.0,88972.0,0.04062]
[1740527333339,0.168578,88980.0,88972.0,0.04062]
[1740527333490,0.168574,88982.0,88972.0,0.04062]
[1740527333696,0.168575,88981.0,88972.0,0.04062]
[1740527333918,0.168573,88982.0,88977.0,0.004]
[1740527334119,0.168573,88982.0,88973.0,0.01690747]
[1740527334436,0.224756,88986.0,88973.0,0.01690747]
[1740527334680,0.16857,88984.0,88973.0,0.01690747]
[1740527334860,0.168563,88988.0,88977.0,0.004]
[1740527335066,0.01515847,88990.0,88977.0,0.004]
[1740527335273,0.01515847,88990.0,88978.0,0.05027327]
[1740527335407,0.0008473,88997.0,88979.0,0.0832]
[1740527335610,0.0008473,88997.0,88980.0,0.01848065]
[1740527336315,0.168552,88993.0,88980.0,0.01848065]
[1740527336510,0.224729,88996.0,88980.0,0.01848065]
[1740527336854,0.168551,88994.0,88980.0,0.01848065]
[1740527337054,0.168552,88993.0,88980.0,0.02048065]
[1740527337269,0.168552,88993.0,88981.0,0.04062]
[1740527337482,0.01516637,88993.0,88981.0,0.04062]
[1740527337644,0.168565,88987.0,88979.0,0.0832]
[1740527337848,0.168565,88987.0,88980.0,0.003]
[1740527338472,0.224741,88992.0,88980.0,0.003]
[1740527338630,0.01483599,88993.0,88980.0,0.003]
[1740527338967,0.224741,88991.0,88981.0,0.01349]
[1740527339145,0.168559,88990.0,88981.0,0.01390782]
[1740527339354,0.168559,88990.0,88982.0,0.01498078]
[1740527339750,0.224747,88989.0,88982.0,0.01498078]
[1740527339954,0.168559,88990.0,88982.0,0.01498078]
[1740527340878,0.168561,88989.0,88982.0,0.01498078]
[1740527341107,0.168561,88989.0,88983.0,0.01502986]
[1740527341326,0.168564,88987.0,88983.0,0.01502986]
[1740527341480,0.16856,88989.0,88983.0,0.01502986]
[1740527341882,0.168557,88991.0,88983.0,0.01502986]
[1740527342587,0.168558,88990.0,88983.0,0.01902986]
[1740527342785,0.01526056,88993.0,88984.0,0.01553477]
[1740527343004,0.224706,89005.0,88984.0,0.01553477]
[1740527343204,0.168567,88985.0,88984.0,0.01553477]
[1740527344340,0.16856,88989.0,88984.0,0.01553477]
[1740527344538,0.168565,88987.0,88984.0,0.01553477]
[1740527344738,0.168565,88986.0,88985.0,0.01518526]
[1740527345242,0.168567,88985.0,88984.0,0.004]
[1740527345446,0.168573,88982.0,88981.0,0.00041782]
[1740527346242,0.0895,88990.0,88981.0,0.00041782]
[1740527346243,0.01465473,88993.0,88981.0,0.00041782]
[1740527346542,0.16856,88990.0,88981.0,0.00341782]
[1740527346743,0.224721,88999.0,88981.0,0.00341782]
[1740527346942,0.168543,88998.0,88981.0,0.00041782]
[1740527347092,0.168561,88989.0,88981.0,0.00041782]
[1740527347294,0.224721,88999.0,88984.0,0.002]
[1740527347295,0.168558,88990.0,88984.0,0.002]
[1740527347713,0.0145785,88993.0,88984.0,0.002]
[1740527347714,0.0145785,88993.0,88984.0,0.0801]
[1740527347952,0.168547,88996.0,88986.0,0.0477]
[1740527348374,0.01464445,88996.0,88986.0,0.0477]
[1740527348575,0.224714,89002.0,88986.0,0.0477]
[1740527348837,0.168539,89000.0,88987.0,0.0355559]
[1740527349144,0.001,88999.0,88987.0,0.0355559]
[1740527349612,0.169541,88999.0,88987.0,0.0355559]
[1740527349733,0.001,88999.0,88988.0,0.02197157]
[1740527349930,0.001,88999.0,88990.0,0.0831]
[1740527350151,0.0008472,89006.0,88993.0,0.01454085]
[1740527350435,0.0008472,89006.0,89002.0,0.251634]
[1740527350746,0.0008472,89006.0,89005.0,0.168529]
[1740527351108,0.0008472,89006.0,89005.0,0.21850174]
[1740527351607,0.0008472,89006.0,89005.0,0.0484]
[1740527351993,0.0008472,89006.0,89005.0,0.0554]
[1740527352186,0.25181057,89092.0,89029.0,0.1218]
[1740527352516,0.03157309,89065.0,89044.0,0.30999685]
[1740527352932,0.16841,89069.0,89044.0,0.30999685]
[1740527353115,0.01530528,89058.0,89044.0,0.14154085]
[1740527353249,0.01530528,89058.0,89044.0,0.127]
[1740527353651,0.00097362,89045.0,89044.0,0.295456]
[1740527353859,0.00097362,89045.0,89044.0,0.302456]
[1740527354066,0.00097362,89045.0,89044.0,0.134]
[1740527354287,0.00097362,89045.0,89044.0,0.141]
[1740527354968,0.00097362,89045.0,89044.0,0.127]
[1740527355169,0.00097362,89045.0,89044.0,0.134]
[1740527355369,0.00097362,89045.0,89044.0,0.141]
[1740527355618,0.00097362,89045.0,89044.0,0.134]
[1740527355869,0.16942762,89045.0,89044.0,0.007]
[1740527356102,0.16942762,89045.0,89044.0,0.014]
[1740527356263,0.17139304,89045.0,89044.0,0.014]
[1740527356463,0.16942762,89045.0,89044.0,0.014]
[1740527356681,0.168476,89033.0,89029.0,0.0454]
[1740527356883,0.00097362,89045.0,89029.0,0.0454]
[1740527356884,0.168482,89030.0,89029.0,0.0454]
[1740527357088,0.16942762,89045.0,89044.0,0.012]
[1740527357475,0.16942762,89045.0,89044.0,0.006]
[1740527358097,0.16942762,89045.0,89044.0,0.007]
[1740527358353,0.16942762,89045.0,89044.0,0.001]
[1740527358525,0.16942762,89045.0,89044.0,0.002]
[1740527359134,0.00097362,89045.0,89044.0,0.002]
[1740527359740,0.16942762,89045.0,89044.0,0.002]
[1740527360361,0.00097362,89045.0,89044.0,0.002]
[1740527363602,0.16942762,89045.0,89044.0,0.002]
[1740527363802,0.00097362,89045.0,89044.0,0.002]
[1740527365966,0.16942762,89045.0,89044.0,0.002]
[1740527366169,0.17139296,89045.0,89044.0,0.002]
[1740527366507,0.16942762,89045.0,89044.0,0.002]
[1740527367442,0.00097362,89045.0,89044.0,0.002]
[1740527367643,0.16942762,89045.0,89044.0,0.001]
[1740527367886,0.00097362,89045.0,89044.0,0.001]
[1740527368062,0.00097362,89045.0,89044.0,0.002]
[1740527368270,0.00097362,89045.0,89044.0,0.001]
[1740527368493,0.00097362,89045.0,89027.0,0.01454085]
[1740527368696,0.00097362,89045.0,89044.0,0.001]
[1740527369029,0.00097362,89045.0,89032.0,0.168478]
[1740527369185,0.00097362,89045.0,89044.0,0.001]
[1740527369869,0.17042762,89045.0,89044.0,0.001]
[1740527370090,0.00197362,89045.0,89027.0,0.01454085]
[1740527370261,0.168465,89040.0,89021.0,0.168499]
[1740527370467,0.00097362,89045.0,89020.0,0.2511]
[1740527370619,0.16942762,89045.0,89044.0,0.002]
[1740527371269,0.224626,89037.0,89020.0,0.0826]
[1740527371483,0.00097362,89045.0,89026.0,0.3291]
[1740527371845,0.00097362,89045.0,89044.0,0.002]